bitfinex-derivatives/quotes_ETHF0:USTF0_20250430
["timestamp","ask_amount","ask_price","bid_price","bid_amount"]
[1745977147652,4.66289,1801.6,1801.4,1.10997]
[1745977147951,4.66284,1801.6,1801.5,1.979]
[1745977148170,4.66284,1801.6,1801.5,5.807]
[1745977148464,4.66284,1801.6,1801.5,7.3986]
[1745977149266,4.66284,1801.6,1801.5,6.2887]
[1745977151266,4.66284,1801.6,1801.5,7.3986]
[1745977151469,4.66284,1801.6,1801.5,6.2887]
[1745977153472,12.87064,1801.6,1801.5,3.828]
[1745977153673,14.52754,1801.6,1801.5,3.828]
[1745977154166,1.10997,1801.4,1801.3,5.902]
[1745977155172,1.10997,1801.4,1801.3,9.73]
[1745977156962,1.10997,1801.4,1801.3,3.828]
[1745977158771,4.31777,1801.4,1801.3,3.828]
[1745977159182,1.11015,1801.1,1801.0,3.2915]
[1745977160178,1.11015,1801.1,1801.0,7.1195]
[1745977160378,1.11015,1801.1,1801.0,8.22971]
[1745977161079,1.11015,1801.1,1801.0,7.1195]
[1745977162677,1.11012,1801.2,1801.1,1.11015]
[1745977162876,1.11012,1801.2,1801.1,2.69585]
[1745977163078,1.11012,1801.2,1801.1,1.5857]
[1745977163782,2.84272,1801.2,1801.1,1.5857]
[1745977167682,1.11015,1801.1,1801.0,8.6672]
[1745977167884,2.69945,1801.1,1801.0,3.828]
[1745977168681,7.69945,1801.1,1801.0,3.828]
[1745977169186,1.11033,1800.8,1800.7,1.7413]
[1745977169782,1.11033,1800.8,1800.7,2.8517]
[1745977170187,1.11033,1800.8,1800.7,6.6797]
[1745977172088,1.11033,1800.8,1800.7,5.5693]
[1745977172584,2.83453,1800.8,1800.7,5.5693]
[1745977172789,6.04233,1800.8,1800.7,3.828]
[1745977173284,1.1104,1800.7,1800.6,7.35786173]
[1745977173490,4.571,1800.7,1800.6,3.19034187]
[1745977173793,1.11046,1800.6,1800.5,3.37169234]
[1745977173991,9.69573008,1800.6,1800.5,0.75512234]
[1745977174191,1.11052,1800.5,1800.4,7.78968235]
[1745977174396,2.79099008,1800.5,1800.4,6.26823235]
[1745977174687,7.69472,1800.5,1800.4,4.74893235]
[1745977174885,7.88722103,1800.5,1800.4,4.74893235]
[1745977175286,7.88722103,1800.5,1800.4,1.74893235]
[1745977175486,1.11064,1800.3,1800.2,18.4167612]
[1745977175792,7.87544,1800.3,1800.2,18.4167612]
[1745977176086,12.87544,1800.3,1800.2,18.4167612]
[1745977176292,14.71088478,1800.3,1800.2,18.4167612]
[1745977177195,14.61464,1800.3,1800.2,18.4167612]
[1745977177382,9.61464,1800.3,1800.2,18.4167612]
[1745977178085,9.61464,1800.3,1800.2,22.2447612]
[1745977178086,7.87544,1800.3,1800.2,22.2447612]
[1745977178491,7.87544,1800.3,1800.2,5.4806]
[1745977182793,6.8620506,1800.5,1800.2,5.4806]
[1745977182996,1.11058,1800.4,1800.3,2.73229]
[1745977183295,1.11058,1800.4,1800.3,1.6217]
[1745977184297,1.11058,1800.4,1800.3,5.4497]
[1745977184501,2.75448,1800.4,1800.3,5.4497]
[1745977185100,2.75448,1800.4,1800.3,5.45373774]
[1745977185598,1.11058,1800.4,1800.3,5.45373774]
[1745977186399,2.75448,1800.4,1800.3,5.45373774]
[1745977190398,2.75448,1800.4,1800.3,3.83203774]
[1745977190591,5.96228,1800.4,1800.3,3.83203774]
[1745977190799,10.96228,1800.4,1800.3,3.83203774]
[1745977191304,11.05844809,1800.4,1800.3,0.00403774]
[1745977191800,10.96228,1800.4,1800.3,0.00403774]
[1745977192303,5.96228,1800.4,1800.3,0.00403774]
[1745977199104,5.96228,1800.4,1800.3,3.83203774]
[1745977202906,6.05845493,1800.4,1800.3,2.05691774]
[1745977203110,1.11083,1800.0,1799.9,0.8659]
[1745977203310,7.88063,1800.0,1799.9,0.8659]
[1745977204113,7.88063,1800.0,1799.9,4.6939]
[1745977204319,9.59733,1800.0,1799.9,4.6939]
[1745977205411,10.03885284,1800.0,1799.9,4.6939]
[1745977206709,9.59733,1800.0,1799.9,4.6939]
[1745977207116,7.88063,1800.0,1799.9,4.6939]
[1745977209511,4.67283,1800.0,1799.9,5.80479]
[1745977209817,4.67283,1800.0,1799.9,4.6939]
[1745977210408,4.67283,1800.0,1799.9,6.3145]
[1745977213617,7.88063,1800.0,1799.9,3.828]
[1745977213819,11.18053,1800.0,1799.9,3.828]
[1745977219118,1.11095,1799.8,1799.7,2.4489]
[1745977220117,1.11095,1799.8,1799.7,6.2769]
[1745977229923,2.71195,1799.8,1799.7,6.2769]
[1745977230113,1.1112,1799.4,1799.3,3.2078]
[1745977230314,1.1112,1799.4,1799.3,0.8535]
[1745977230720,3.5711,1799.4,1799.3,0.8535]
[1745977231117,3.5711,1799.4,1799.3,4.6815]
[1745977231924,2.7122,1799.4,1799.3,4.6815]
[1745977232113,2.7122,1799.4,1799.3,6.2801]
[1745977246935,2.7122,1799.4,1799.3,4.6815]
[1745977248437,2.7122,1799.4,1799.3,3.828]
[1745977248629,3.5786,1799.4,1799.3,3.828]
[1745977252739,6.7864,1799.4,1799.3,3.828]
[1745977253244,1.11145,1799.0,1798.9,6.5435]
[1745977254335,1.11145,1799.0,1798.9,10.3715]
[1745977254739,2.79185,1799.0,1798.9,10.3715]
[1745977261344,1.11145,1799.0,1798.9,10.3715]
[1745977261541,1.11145,1799.0,1798.9,11.48301]
[1745977262248,1.11145,1799.0,1798.9,8.27521]
[1745977262543,1.11145,1799.0,1798.9,7.1637]
[1745977262846,6.00615,1799.0,1798.9,5.5049]
[1745977263051,6.87305,1799.0,1798.9,5.5049]
[1745977263244,6.87305,1799.0,1798.9,4.6577]
[1745977263544,7.70935,1799.0,1798.9,4.6577]
[1745977264749,6.00615,1799.0,1798.9,4.6577]
[1745977264949,6.00615,1799.0,1798.9,6.4017]
[1745977266147,4.31925,1799.0,1798.9,6.4017]
[1745977266451,4.31925,1799.0,1798.9,7.51317]
[1745977266452,1.11145,1799.0,1798.9,7.51317]
[1745977266951,1.11145,1799.0,1798.9,6.4017]
[1745977272163,6.39904,1799.1,1798.9,6.4017]
[1745977272354,3.547,1799.1,1799.0,2.84445]
[1745977272861,1.11138,1799.1,1799.0,2.84445]
[1745977273266,1.11138,1799.1,1799.0,6.67245]
[1745977273960,1.11136,1799.2,1799.1,1.11133]
[1745977274166,3.544,1799.3,1799.1,1.11133]
[1745977274167,1.11129,1799.3,1799.2,1.11132]
[1745977274459,1.11129,1799.3,1799.2,0.8685]
[1745977274660,1.11129,1799.3,1799.2,2.6015]
[1745977274862,1.11129,1799.3,1799.2,3.71282]
[1745977275164,1.11129,1799.3,1799.2,7.54082]
[1745977275363,1.11129,1799.3,1799.2,6.4295]
[1745977276056,2.74059,1799.3,1799.2,3.828]
[1745977276258,3.59439,1799.3,1799.2,3.828]
[1745977280359,8.59439,1799.3,1799.2,3.828]
[1745977280566,8.69044715,1799.3,1799.2,3.828]
[1745977280767,1.11151,1798.9,1798.8,9.61605549]
[1745977280970,7.95836715,1798.9,1798.8,2.13452738]
[1745977281263,1.11157,1798.8,1798.7,13.3148505]
[1745977281469,3.66112715,1798.8,1798.7,13.3148505]
[1745977281668,8.66112715,1798.8,1798.7,12.5119505]
[1745977281871,1.11175,1798.5,1798.4,12.5119505]
[1745977282063,7.86355,1798.5,1798.4,12.5119505]
[1745977282361,7.86355,1798.5,1798.4,16.3399505]
[1745977283565,12.86355,1798.5,1798.4,16.3399505]
[1745977284270,12.86355,1798.5,1798.4,12.5119505]
[1745977285270,12.86355,1798.5,1798.4,8.6441605]
[1745977285465,12.95960547,1798.5,1798.4,8.6441605]
[1745977286363,7.95960547,1798.5,1798.4,8.6441605]
[1745977286964,1.11182,1798.4,1797.9,1.6627]
[1745977287169,3.2078,1798.3,1797.9,5.4907]
[1745977287370,1.11204,1798.1,1798.0,1.6649]
[1745977287771,1.1119,1798.3,1798.0,9.8727]
[1745977287972,4.6629,1798.3,1798.1,1.91558]
[1745977288271,4.66288,1798.3,1798.2,2.4896]
[1745977289167,3.551,1798.3,1798.2,7.42954]
[1745977289770,1.11188,1798.3,1798.2,7.42954]
[1745977290068,4.66285,1798.4,1798.3,1.11188]
[1745977290266,3.2078,1798.6,1798.3,2.77678]
[1745977290467,4.66278,1798.5,1798.3,1.6649]
[1745977290666,4.66278,1798.5,1798.4,2.5388]
[1745977290858,4.66278,1798.5,1798.4,3.65062]
[1745977291173,3.551,1798.5,1798.4,7.47862]
[1745977291367,3.2078,1798.6,1798.5,1.11175]
[1745977291368,4.31953,1798.6,1798.5,1.11175]
[1745977291571,3.551,1798.6,1798.5,2.80665]
[1745977291963,4.66269,1798.6,1798.5,2.80665]
[1745977292268,4.66269,1798.6,1798.5,6.63465]
[1745977294272,4.66269,1798.6,1798.5,5.5229]
[1745977294570,4.66269,1798.6,1798.5,6.63465]
[1745977295374,3.551,1798.6,1798.5,6.63465]
[1745977299769,6.87626684,1799.3,1798.8,2.77893]
[1745977299979,1.1115,1799.0,1798.9,3.51795]
[1745977300168,1.1115,1799.0,1798.9,6.2345]
[1745977300366,1.1115,1799.0,1798.9,4.6467]
[1745977300571,2.767,1799.0,1798.9,4.6467]
[1745977300765,2.767,1799.0,1798.9,5.75821]
[1745977301578,1.6555,1799.0,1798.9,5.75821]
[1745977303080,1.6555,1799.0,1798.9,4.93951]
[1745977306970,1.6555,1799.0,1798.9,3.828]
[1745977307881,2.76695,1799.0,1798.9,3.828]
[1745977308484,1.6555,1799.0,1798.9,3.828]
[1745977308681,2.76695,1799.0,1798.9,3.828]
[1745977308981,2.76695,1799.0,1798.9,5.4693]
[1745977309584,2.76695,1799.0,1798.9,3.828]
[1745977311283,1.11157,1798.8,1798.7,2.4474]
[1745977311480,1.11157,1798.8,1798.7,3.55903]
[1745977312084,1.11157,1798.8,1798.7,7.38703]
[1745977312582,2.77627,1798.8,1798.7,7.38703]
[1745977315183,3.551,1798.9,1798.8,1.11157]
[1745977315379,3.544,1799.1,1799.0,1.11145]
[1745977315585,3.66846684,1799.3,1799.2,1.11132]
[1745977315779,1.11132,1799.2,1799.1,8.65365]
[1745977316083,1.11132,1799.2,1799.1,7.5423]
[1745977316284,2.82902,1799.2,1799.1,10.28768]
[1745977317290,1.11132,1799.2,1799.1,10.28768]
[1745977319283,2.76092,1799.2,1799.1,10.28768]
[1745977321082,1.6496,1799.2,1799.1,10.28768]
[1745977321287,1.6496,1799.2,1799.1,4.38568]
[1745977322688,3.544,1799.4,1799.1,3.2743]
[1745977322992,3.544,1799.4,1799.3,1.11126]
[1745977323485,3.544,1799.4,1799.3,2.71736]
[1745977323887,6.87626684,1799.7,1799.6,1.11108]
[1745977324087,7.98727684,1799.7,1799.6,1.11108]
[1745977324395,6.87626684,1799.7,1799.6,1.11108]
[1745977324691,7.98727684,1799.7,1799.6,2.80658]
[1745977324892,9.67347684,1799.7,1799.6,2.80658]
[1745977325093,3.66846684,1799.7,1799.6,2.80658]
[1745977326293,3.66846684,1799.7,1799.6,6.01438]
[1745977326493,3.66846684,1799.7,1799.6,11.91638]
[1745977328400,3.64738,1800.0,1799.9,1.11089]
[1745977329301,3.64738,1800.0,1799.9,4.93889]
[1745977329802,11.85518,1800.0,1799.9,3.828]
[1745977330305,1.11101,1799.7,1799.6,3.2078]
[1745977330901,2.70591,1799.7,1799.6,3.2078]
[1745977331203,2.70591,1799.7,1799.5,4.9391]
[1745977331398,1.5949,1799.6,1799.5,4.9391]
[1745977333007,2.70598,1799.6,1799.5,3.828]
[1745977333298,1.5949,1799.6,1799.5,3.828]
[1745977333499,3.542,1799.8,1799.5,3.828]
[1745977333702,1.11105,1799.7,1799.5,4.93912]
[1745977334003,2.76515,1799.7,1799.5,3.828]
[1745977334404,2.76518,1799.6,1799.5,3.828]
[1745977334705,1.6541,1799.6,1799.5,3.828]
[1745977334904,2.76518,1799.6,1799.5,3.828]
[1745977335604,7.76518,1799.6,1799.5,3.828]
[1745977335995,8.63748,1799.6,1799.5,3.828]
[1745977337607,3.63748,1799.6,1799.5,3.828]
[1745977339503,8.32252684,1799.7,1799.5,4.93911]
[1745977339708,8.32252684,1799.7,1799.6,2.5753]
[1745977340112,7.21146684,1799.7,1799.6,3.68638]
[1745977340407,7.21146684,1799.7,1799.6,9.58838]
[1745977340807,8.32247684,1799.7,1799.6,9.58838]
[1745977341307,8.32247684,1799.7,1799.6,8.4773]
[1745977342102,4.77947684,1799.7,1799.6,9.58838]
[1745977342307,5.1862,1800.1,1799.6,13.4773]
[1745977342508,1.11089,1799.9,1799.8,1.11093]
[1745977342808,1.11089,1800.0,1799.8,3.53413]
[1745977343009,1.11089,1800.0,1799.9,1.5887]
[1745977344207,2.75509,1800.0,1799.9,5.4167]
[1745977350911,2.75509,1800.0,1799.9,6.52759]
[1745977351907,2.75509,1800.0,1799.9,5.4167]
[1745977354106,2.75509,1800.0,1799.9,6.52759]
[1745977356217,7.86061,1800.1,1800.0,1.11083]
[1745977356413,7.86061,1800.1,1800.0,2.4192]
[1745977356613,9.44731,1800.1,1800.0,2.4192]
[1745977357115,9.44731,1800.1,1800.0,6.2472]
[1745977358015,9.44731,1800.1,1800.0,7.35803]
[1745977358016,5.1287,1800.1,1800.0,7.35803]
[1745977358217,3.542,1800.1,1800.0,7.35803]
[1745977358613,4.65277,1800.1,1800.0,7.35803]
[1745977360113,1.11077,1800.1,1800.0,7.35803]
[1745977360314,3.66846684,1800.4,1800.3,1.11064]
[1745977360514,3.66846684,1800.4,1800.3,4.31844]
[1745977361316,3.66846684,1800.4,1800.3,8.14644]
[1745977364223,2.80511,1800.6,1800.5,1.11052]
[1745977364725,1.11058,1800.4,1800.3,8.14638]
[1745977365413,2.83698,1800.4,1800.3,8.14638]
[1745977365724,2.83698,1800.4,1800.3,9.80248]
[1745977367525,1.7264,1800.4,1800.3,9.80248]
[1745977367821,1.1105,1800.6,1800.5,1.11052]
[1745977368218,2.78836,1800.7,1800.6,1.11046]
[1745977368418,2.78836,1800.7,1800.6,2.74636]
[1745977368921,1.6779,1800.7,1800.6,2.74636]
[1745977369121,7.87418,1800.8,1800.7,1.1104]
[1745977369321,4.66638,1800.8,1800.7,3.5961]
[1745977370024,4.66638,1800.8,1800.7,1.9602]
[1745977370318,4.66638,1800.8,1800.7,5.7882]
[1745977370524,3.556,1800.8,1800.7,5.7882]
[1745977371021,5.273,1800.8,1800.7,7.4868]
[1745977372528,6.38333,1800.8,1800.7,4.9384]
[1745977372827,6.38333,1800.8,1800.7,3.828]
[1745977373026,6.38333,1800.8,1800.7,4.9384]
[1745977374625,6.38333,1800.8,1800.7,3.828]
[1745977375130,11.38333,1800.8,1800.7,3.828]
[1745977375621,14.59113,1800.8,1800.7,3.828]
[1745977375927,14.6873679,1800.8,1800.7,3.828]
[1745977376126,1.11052,1800.5,1800.4,5.902]
[1745977376322,1.11064,1800.3,1800.2,0.7957]
[1745977377225,1.1107,1800.2,1800.1,4.0057]
[1745977377525,1.11078,1800.1,1799.9,10.22067]
[1745977377832,1.11078,1800.1,1799.9,13.60217]
[1745977378129,1.11078,1800.1,1799.9,17.43017]
[1745977378326,1.6929,1800.0,1799.9,17.43017]
[1745977379532,2.80373,1800.0,1799.9,17.43017]
[1745977380434,2.80373,1800.0,1799.9,16.3193]
[1745977380936,7.80373,1800.0,1799.9,3.828]
[1745977381226,11.01153,1800.0,1799.9,1.36457]
[1745977381431,11.01153,1800.0,1799.3,3.2078]
[1745977381432,2.77723,1799.9,1799.2,8.3821]
[1745977381729,1.11126,1799.3,1799.2,5.902]
[1745977382032,1.11132,1799.2,1799.1,1.11138]
[1745977382630,1.11138,1799.1,1799.0,16.0445141]
[1745977382830,1.11138,1799.2,1799.0,16.0445341]
[1745977383032,1.11138,1799.2,1799.0,13.2970041]
[1745977383328,1.11132,1799.2,1799.1,1.6361]
[1745977384130,1.11132,1799.2,1799.1,2.74748]
[1745977384731,1.11132,1799.2,1799.1,1.6361]
[1745977386926,1.11138,1799.1,1799.0,3.828]
[1745977387233,4.67338,1799.1,1799.0,3.828]
[1745977387729,8.00958,1799.1,1799.0,3.828]
[1745977390233,13.00958,1799.1,1799.0,3.828]
[1745977390933,8.00958,1799.1,1799.0,3.828]
[1745977401228,4.67338,1799.1,1799.0,3.828]
[1745977401432,6.38118,1799.1,1799.0,3.828]
[1745977403132,1.11157,1798.8,1798.7,8.7838]
[1745977403331,4.67457,1798.8,1798.7,8.7838]
[1745977404131,4.67457,1798.8,1798.7,12.6118]
[1745977404338,4.67457,1798.8,1798.7,8.7838]
[1745977409947,4.67457,1798.8,1798.7,9.89543]
[1745977410336,4.67457,1798.8,1798.7,8.7838]
[1745977410537,4.67457,1798.8,1798.7,9.89543]
[1745977411044,4.67457,1798.8,1798.7,8.7838]
[1745977413545,4.67457,1798.8,1798.7,9.89543]
[1745977413745,4.67457,1798.8,1798.7,8.7838]
[1745977414045,4.67457,1798.8,1798.7,9.89543]
[1745977414245,4.67457,1798.8,1798.7,8.7838]
[1745977415350,4.67457,1798.8,1798.7,9.89543]
[1745977415746,4.67457,1798.8,1798.7,8.7838]
[1745977419948,4.67457,1798.8,1798.7,9.89543]
[1745977420146,4.67457,1798.8,1798.7,8.7838]
[1745977422448,4.67457,1798.8,1798.7,5.576]
[1745977427547,6.34727,1798.8,1798.7,3.828]
[1745977427753,13.05307,1798.8,1798.7,2.21881]
[1745977428049,13.14914226,1798.8,1798.7,0.72648]
[1745977428250,1.11194,1798.2,1798.1,19.7287041]
[1745977428643,1.11194,1798.2,1798.1,10.738]
[1745977428843,2.78464,1798.2,1798.1,10.738]
[1745977429042,2.78464,1798.2,1798.1,12.3337]
[1745977430447,2.78464,1798.2,1798.1,3.2078]
[1745977431349,1.112,1798.1,1798.0,20.23374781]
[1745977431546,2.7024,1798.1,1798.0,20.23374781]
[1745977432246,2.7024,1798.1,1798.0,5.433]
[1745977432447,2.7024,1798.1,1798.0,3.828]
[1745977434649,7.7024,1798.1,1798.0,1.30419]
[1745977434953,7.7984182,1798.1,1798.0,1.30419]
[1745977435151,1.11231,1797.6,1797.5,7.42314774]
[1745977435353,4.67331,1797.6,1797.5,9.98154774]
[1745977435553,3.561,1797.6,1797.5,11.09391774]
[1745977435758,4.67331,1797.6,1797.5,9.98154774]
[1745977436156,4.67331,1797.6,1797.5,13.80954774]
[1745977438154,4.67331,1797.6,1797.5,11.25114774]
[1745977438351,5.53841,1797.6,1797.5,11.25114774]
[1745977438656,4.67331,1797.6,1797.5,11.25114774]
[1745977438855,4.67331,1797.6,1797.5,13.78964774]
[1745977439557,4.67331,1797.6,1797.5,6.3665]
[1745977440764,4.67331,1797.6,1797.5,4.7024]
[1745977441060,4.67331,1797.6,1797.5,3.828]
[1745977441554,7.88111,1797.6,1797.5,3.828]
[1745977445455,1.11262,1797.1,1797.0,5.902]
[1745977445660,1.11274,1796.9,1796.8,2.503]
[1745977446357,1.11274,1796.9,1796.8,6.331]
[1745977456665,1.11272,1797.0,1796.9,1.11274]
[1745977456866,3.564,1797.0,1796.9,2.70063]
[1745977457066,4.67668,1797.0,1796.9,1.5879]
[1745977457273,4.67668,1797.0,1796.9,5.4159]
[1745977458470,6.38988,1797.0,1796.9,5.4159]
[1745977458771,4.67668,1797.0,1796.9,5.4159]
[1745977462673,6.29258,1797.0,1796.9,5.4159]
[1745977462973,6.29258,1797.0,1796.9,3.828]
[1745977464175,6.29258,1797.0,1796.9,5.5179]
[1745977467279,6.29258,1797.0,1796.9,3.828]
[1745977468164,7.08328,1797.0,1796.9,3.828]
[1745977470369,6.29258,1797.0,1796.9,3.828]
[1745977470570,6.29258,1797.0,1796.9,5.5769]
[1745977472776,4.67668,1797.0,1796.9,5.5769]
[1745977472975,3.564,1797.0,1796.9,6.68964]
[1745977473176,1.11262,1797.2,1796.9,16.4789]
[1745977473367,6.7658,1797.3,1797.0,3.54588]
[1745977473575,1.1126,1797.2,1797.1,1.6297]
[1745977474577,2.84,1797.2,1797.1,1.6297]
[1745977474976,1.11262,1797.1,1797.0,4.6315]
[1745977475175,2.84002,1797.1,1797.0,4.6315]
[1745977475476,2.84002,1797.1,1797.0,6.2612]
[1745977475877,2.84002,1797.1,1797.0,7.37388]
[1745977476181,6.33925,1797.3,1797.0,7.37388]
[1745977476478,1.11256,1797.2,1797.1,2.80232]
[1745977476677,1.11256,1797.2,1797.1,1.6897]
[1745977478283,2.78656,1797.2,1797.1,1.6897]
[1745977478673,1.11262,1797.1,1797.0,3.828]
[1745977478872,3.59612,1797.1,1797.0,3.828]
[1745977480079,2.78662,1797.1,1797.0,6.65188]
[1745977481278,1.11262,1797.1,1797.0,6.65188]
[1745977481680,1.11262,1797.1,1797.0,3.828]
[1745977482583,1.11262,1797.1,1797.0,4.94068]
[1745977483383,1.11262,1797.1,1797.0,3.828]
[1745977483883,1.11262,1797.1,1797.0,4.94068]
[1745977484382,1.11262,1797.1,1797.0,3.828]
[1745977484574,1.11262,1797.1,1797.0,4.94068]
[1745977484770,1.11262,1797.1,1797.0,5.4176]
[1745977484983,1.11262,1797.1,1797.0,6.53028]
[1745977486384,1.11262,1797.1,1797.0,3.828]
[1745977489587,1.11262,1797.1,1797.0,4.94068]
[1745977490990,2.70859,1797.2,1797.1,1.11262]
[1745977491290,2.70856,1797.2,1797.1,3.67672]
[1745977491985,2.70856,1797.2,1797.1,2.5641]
[1745977493790,1.11262,1797.1,1797.0,7.0358]
[1745977493980,2.75182,1797.1,1797.0,3.828]
[1745977494385,2.74554672,1797.1,1797.0,3.828]
[1745977496091,2.74554672,1797.1,1797.0,5.489]
[1745977498897,2.74554672,1797.1,1797.0,3.828]
[1745977504688,10.45343117,1797.3,1797.0,3.828]
[1745977504894,1.11261,1797.2,1797.1,2.4424]
[1745977507393,2.76671,1797.2,1797.1,2.4424]
[1745977509396,3.551,1797.3,1797.1,6.7628]
[1745977509596,4.66354,1797.3,1797.2,1.6469]
[1745977509801,4.66354,1797.3,1797.2,2.486]
[1745977510096,4.66354,1797.3,1797.2,6.314]
[1745977510298,4.66354,1797.3,1797.2,7.42656]
[1745977510597,4.66354,1797.3,1797.2,6.314]
[1745977513400,4.66354,1797.3,1797.2,7.42656]
[1745977513590,4.66354,1797.3,1797.2,3.828]
[1745977513792,8.02574,1797.3,1797.2,3.828]
[1745977516697,11.69868117,1797.3,1797.2,3.828]
[1745977516904,19.90648117,1797.3,1797.2,3.828]
[1745977517894,1.11281,1796.8,1796.7,7.42314774]
[1745977518098,4.66381,1796.8,1796.7,11.25114774]
[1745977518498,6.26431,1796.8,1796.7,11.25114774]
[1745977520096,6.26431,1796.8,1796.7,3.828]
[1745977520307,1.11305,1796.4,1796.3,7.42314774]
[1745977520600,4.66405,1796.4,1796.3,8.21994774]
[1745977521101,4.66405,1796.4,1796.3,12.04794774]
[1745977521801,3.551,1796.4,1796.3,13.16106774]
[1745977523200,4.66405,1796.4,1796.3,13.16106774]
[1745977523501,3.551,1796.4,1796.3,13.16106774]
[1745977523889,3.2078,1796.6,1796.5,1.11299]
[1745977524100,3.2078,1796.6,1796.4,1.113]
[1745977524294,3.2078,1796.6,1796.5,3.828]
[1745977524295,4.32073,1796.6,1796.5,3.828]
[1745977524703,1.11293,1796.6,1796.5,3.828]
[1745977525607,2.82843,1796.6,1796.5,3.828]
[1745977528304,1.7223,1796.7,1796.5,3.828]
[1745977528507,1.11293,1796.6,1796.5,3.828]
[1745977529712,1.93033,1796.6,1796.5,3.828]
[1745977529912,4.47343,1796.6,1796.5,3.828]
[1745977530211,7.68123,1796.6,1796.5,3.828]
[1745977534716,3.564,1796.7,1796.5,3.828]
[1745977534914,4.67687,1796.7,1796.6,0.8118]
[1745977535215,6.26737,1796.7,1796.6,0.8118]
[1745977537320,3.564,1796.7,1796.6,1.92473]
[1745977538017,4.67687,1796.7,1796.6,1.92473]
[1745977538217,4.67687,1796.7,1796.6,0.8118]
[1745977538417,4.67687,1796.7,1796.6,1.92473]
[1745977538917,4.67687,1796.7,1796.6,4.42883]
[1745977539321,2.78189,1796.9,1796.6,6.5237]
[1745977539520,4.67681,1796.8,1796.7,1.6531]
[1745977539722,4.67681,1796.8,1796.7,2.76597]
[1745977540021,4.67681,1796.8,1796.7,1.6531]
[1745977540223,4.67681,1796.8,1796.7,5.4811]
[1745977543622,3.564,1796.8,1796.7,5.4811]
[1745977543822,4.67681,1796.8,1796.7,5.4811]
[1745977544123,3.564,1796.8,1796.7,5.4811]
[1745977544422,3.564,1796.8,1796.7,6.59397]
[1745977544623,3.564,1796.8,1796.7,5.4811]
[1745977544624,4.67681,1796.8,1796.7,5.4811]
[1745977544820,4.67681,1796.8,1796.7,6.59397]
[1745977545923,4.67681,1796.8,1796.7,5.4811]
[1745977546313,4.67681,1796.8,1796.7,6.59397]
[1745977546516,4.67681,1796.8,1796.7,5.4811]
[1745977550321,12.88461,1796.8,1796.7,2.4426]
[1745977550530,1.11312,1796.3,1796.2,0.823]
[1745977551021,1.11324,1796.1,1796.0,7.42314774]
[1745977551223,7.88504,1796.1,1796.0,11.25114774]
[1745977551423,4.67724,1796.1,1796.0,11.25114774]
[1745977551730,6.36094,1796.1,1796.0,11.25114774]
[1745977553435,6.36094,1796.1,1796.0,12.85424774]
[1745977554530,6.36094,1796.1,1796.0,5.4311]
[1745977556433,6.36094,1796.1,1796.0,3.828]
[1745977556636,11.36094,1796.1,1796.0,3.828]
[1745977556826,1.11349,1795.7,1795.6,3.2078]
[1745977557022,2.78393,1795.6,1795.2,10.63094774]
[1745977557225,1.11374,1795.3,1795.2,11.25114774]
[1745977557422,4.67874,1795.3,1795.2,11.25114774]
[1745977558734,7.88654,1795.3,1795.2,11.25114774]
[1745977559635,12.88654,1795.3,1795.2,11.25114774]
[1745977560535,1.1138,1795.2,1795.1,1.02917779]
[1745977560840,1.1138,1795.2,1794.9,17.77595612]
[1745977560841,1.11392,1795.0,1794.9,17.77595612]
[1745977561132,8.05746838,1795.0,1794.9,20.36545612]
[1745977561434,13.05746838,1795.0,1794.9,19.12789612]
[1745977561637,1.11392,1795.0,1794.9,19.12789612]
[1745977561833,9.75392,1795.0,1794.9,17.98846612]
[1745977562034,12.96172,1795.0,1794.9,16.79900612]
[1745977562228,12.96172,1795.0,1794.9,14.18922612]
[1745977563032,1.11392,1795.0,1794.9,14.18922612]
[1745977563232,4.75392,1795.0,1794.9,14.18922612]
[1745977563635,4.75392,1795.0,1794.9,3.828]
[1745977563936,9.69182,1795.0,1794.9,3.828]
[1745977564132,1.11392,1795.0,1794.9,3.828]
[1745977564437,4.75492,1795.0,1794.9,3.828]
[1745977564645,3.641,1795.0,1794.9,8.828]
[1745977564941,4.75492,1795.0,1794.9,3.828]
[1745977565530,7.96272,1795.0,1794.9,3.828]
[1745977565736,9.65052,1795.0,1794.9,3.828]
[1745977566029,6.44272,1795.0,1794.9,3.828]
[1745977566232,7.96272,1795.0,1794.9,3.828]
[1745977566433,9.65052,1795.0,1794.9,3.828]
[1745977566739,6.44272,1795.0,1794.9,3.828]
[1745977567439,9.65052,1795.0,1794.9,3.828]
[1745977570341,14.65052,1795.0,1794.9,3.828]
[1745977571242,14.65052,1795.0,1794.9,2.30752]
[1745977571535,1.1143,1794.4,1794.3,4.004]
[1745977571740,4.7553,1794.4,1794.3,4.004]
[1745977572333,4.7553,1794.4,1794.3,7.832]
[1745977572533,4.75085093,1794.4,1794.3,9.4664]
[1745977573742,4.75085093,1794.4,1794.3,3.828]
[1745977574443,6.35545093,1794.4,1794.3,3.828]
[1745977574642,4.75085093,1794.4,1794.3,3.828]
[1745977574839,6.8498,1794.5,1794.4,1.1143]
[1745977575038,3.642,1794.5,1794.4,2.8338]
[1745977575344,3.642,1794.5,1794.4,7.5826]
[1745977575540,3.642,1794.5,1794.4,3.6969]
[1745977575733,3.642,1794.5,1794.4,8.6969]
[1745977576137,3.642,1794.5,1794.4,12.5249]